bitfinex/quotes_SOLUSD_20240821
["timestamp","ask_amount","ask_price","bid_price","bid_amount"]
[1724265470687,6.9951,142.96,142.9,6.9978]
[1724265471198,6.9963,142.94,142.89,32.7588]
[1724265471357,6.9972,142.92,142.89,15.2633]
[1724265471556,6.9966,142.93,142.89,15.2633]
[1724265472757,6.9971,142.92,142.89,15.2633]
[1724265472965,34.31141415,142.92,142.85,13.178]
[1724265473184,6.9987,142.89,142.85,15.7334]
[1724265473385,1.35141415,142.88,142.85,15.7334]
[1724265473694,6.998,142.9,142.85,15.7334]
[1724265474085,32.96,142.92,142.85,33.2337]
[1724265474485,6.9979,142.9,142.85,15.7334]
[1724265474673,1.35141415,142.89,142.85,15.7334]
[1724265474986,8.34981415,142.89,142.85,15.7334]
[1724265475586,34.31141415,142.88,142.82,18.3377037]
[1724265475959,34.31141415,142.88,142.82,0.8339037]
[1724265476259,6.9998,142.86,142.82,0.8339037]
[1724265476459,7.0004,142.85,142.82,0.8339037]
[1724265476678,45.0,142.87,142.82,0.8339037]
[1724265476679,7.0009,142.84,142.82,0.8339037]
[1724265477775,1.35141415,142.83,142.82,0.8339037]
[1724265477974,1.35141415,142.85,142.82,0.8339037]
[1724265478275,13.0939,142.83,142.82,0.8339037]
[1724265478596,46.0539,142.83,142.82,0.8339037]
[1724265478770,112.40531415,142.83,142.82,0.8339037]
[1724265479167,111.0539,142.83,142.82,0.8339037]
[1724265479486,7.0004,142.85,142.82,0.8339037]
[1724265479787,6.9998,142.86,142.82,0.8339037]
[1724265479965,50.4557,142.9,142.82,0.8339037]
[1724265479966,6.9994,142.87,142.82,0.8339037]
[1724265480381,6.0926,142.92,142.82,0.8339037]
[1724265480591,32.96,142.89,142.82,0.8339037]
[1724265480892,32.96,142.87,142.82,0.8339037]
[1724265481185,7.0009,142.84,142.82,0.8339037]
[1724265481402,7.0004,142.85,142.82,0.8339037]
[1724265481763,7.0013,142.83,142.82,0.8339037]
[1724265481965,32.96,142.87,142.82,0.8339037]
[1724265481966,7.0007,142.85,142.82,0.8339037]
[1724265482187,7.0012,142.84,142.82,0.8339037]
[1724265482395,7.0003,142.86,142.82,0.8339037]
[1724265482705,32.96,142.84,142.82,0.8339037]
[1724265482863,52.0013,142.83,142.82,0.8339037]
[1724265483492,7.0013,142.83,142.82,0.8339037]
[1724265483691,7.0009,142.84,142.82,0.8339037]
[1724265483994,7.0013,142.83,142.82,0.8339037]
[1724265484289,32.96,142.85,142.82,0.8339037]
[1724265484493,7.0011,142.84,142.82,0.8339037]
[1724265484876,7.0013,142.83,142.82,0.8339037]
[1724265485097,7.0009,142.84,142.82,0.8339037]
[1724265485274,7.0013,142.83,142.82,0.8339037]
[1724265485476,27.0013,142.83,142.82,0.8339037]
[1724265486469,73.35271415,142.83,142.82,0.8339037]
[1724265486690,27.0013,142.83,142.82,0.8339037]
[1724265488802,61.31271415,142.83,142.82,0.8339037]
[1724265488970,106.31271415,142.83,142.82,0.8339037]
[1724265489181,7.0035,142.79,142.74,33.5504]
[1724265489415,1.35141415,142.78,142.74,33.5504]
[1724265489696,1.35141415,142.78,142.74,16.0366]
[1724265489876,20.0,142.83,142.74,16.0366]
[1724265490084,7.0021,142.82,142.74,16.0366]
[1724265490282,7.0021,142.82,142.75,24.5171]
[1724265490488,7.0024,142.81,142.75,24.5171]
[1724265490876,7.0028,142.8,142.74,23.0422]
[1724265491095,7.0039,142.78,142.74,16.0366]
[1724265491280,7.0043,142.77,142.74,16.0366]
[1724265491594,39.9643,142.77,142.74,16.0366]
[1724265492173,32.96,142.77,142.74,16.0366]
[1724265492798,7.0038,142.78,142.74,16.0366]
[1724265492974,32.96,142.81,142.74,16.0366]
[1724265493177,7.0021,142.82,142.76,7.0046]
[1724265493378,32.96,142.81,142.75,17.5123]
[1724265493670,32.96,142.81,142.74,23.0422]
[1724265493899,7.0033,142.79,142.74,16.0366]
[1724265494106,7.0038,142.78,142.74,16.0366]
[1724265494403,7.0047,142.76,142.74,16.0366]
[1724265494605,7.0052,142.75,142.74,16.0366]
[1724265494805,7.0052,142.75,142.7,15.1039]
[1724265495176,7.0048,142.76,142.7,22.1115]
[1724265495390,8.35621415,142.76,142.7,22.1115]
[1724265495976,7.0052,142.75,142.7,22.1115]
[1724265496186,39.9656,142.75,142.7,15.1039]
[1724265496404,1.35141415,142.74,142.7,15.1039]
[1724265496708,39.9656,142.75,142.7,15.1039]
[1724265498094,32.96,142.75,142.7,22.1114]
[1724265499002,39.9644,142.77,142.71,7.007]
[1724265499183,32.96,142.75,142.7,15.1039]
[1724265499385,7.0063,142.73,142.7,15.1039]
[1724265499709,32.96,142.73,142.7,15.1039]
[1724265500274,32.96,142.75,142.7,15.1039]
[1724265500495,52.0049,142.76,142.7,22.1115]
[1724265500698,7.0054,142.75,142.7,15.1039]
[1724265501609,7.0049,142.76,142.7,20.8639]
[1724265501922,8.35671415,142.75,142.7,20.8639]
[1724265502104,7.0053,142.75,142.7,20.8639]
[1724265502437,8.35671415,142.75,142.7,13.8564]
[1724265502731,24.80544114,142.78,142.68,0.8339037]
[1724265502732,32.96,142.71,142.68,0.8339037]
[1724265503107,45.0,142.74,142.68,0.8339037]
[1724265503418,39.9653,142.75,142.68,0.8339037]
[1724265503624,8.35711415,142.74,142.68,0.8339037]
[1724265503929,7.0066,142.73,142.68,0.8339037]
[1724265504117,1.35141415,142.72,142.68,0.8339037]
[1724265504597,1.35141415,142.72,142.68,17.0409037]
[1724265504796,7.0066,142.73,142.68,17.0409037]
[1724265505222,45.0,142.72,142.68,17.0409037]
[1724265505403,32.96,142.71,142.68,0.8339037]
[1724265505606,32.96,142.69,142.68,0.8339037]
[1724265505804,39.9681,142.69,142.68,0.8339037]
[1724265506416,84.9681,142.69,142.68,0.8339037]
[1724265506906,7.2872935,142.71,142.68,0.8339037]
[1724265507226,39.1022,142.77,142.68,7.8425037]
[1724265507428,7.0058,142.74,142.68,25.3638037]
[1724265507737,7.0053,142.75,142.69,7.008]
[1724265507935,7.006,142.74,142.68,25.3638037]
[1724265508300,7.006,142.74,142.68,18.3552037]
[1724265508805,8.35741415,142.74,142.68,18.3552037]
[1724265509530,32.96,142.75,142.7,7.0076]
[1724265509711,7.28516247,142.76,142.71,32.9457]
[1724265510028,8.54155632,142.82,142.74,6.3555]
[1724265510029,32.96,142.82,142.74,6.3555]
[1724265510331,7.2841834,142.8,142.74,6.3555]
[1724265510515,7.0018,142.82,142.75,7.0052]
[1724265511213,7.28352775,142.83,142.74,6.3555]
[1724265511214,7.28352775,142.83,142.76,7.0046]
[1724265511809,20.0,142.82,142.76,7.0046]
[1724265512109,20.0,142.82,142.74,6.3555]
[1724265512418,14.28482775,142.83,142.76,17.5116]
[1724265512419,7.28352775,142.83,142.76,17.5116]
[1724265512630,6.9994,142.87,142.77,1.40052421]
[1724265512811,7.28398577,142.87,142.76,58.7916]
[1724265513014,48.2803,142.85,142.77,7.0041]
[1724265513214,7.0003,142.85,142.76,17.5116]
[1724265514034,8.35171415,142.85,142.76,24.5158]
[1724265514210,49.63171415,142.85,142.76,24.5158]
[1724265514411,49.63171415,142.85,142.77,7.004]
[1724265514816,7.0009,142.84,142.77,7.004]
[1724265515936,48.2805,142.85,142.78,7.0037]
[1724265516113,7.0009,142.84,142.77,7.0042]
[1724265516311,42.63141415,142.83,142.75,15.5898]
[1724265516531,7.0022,142.82,142.76,7.0047]
[1724265516732,48.2814,142.83,142.76,7.0047]
[1724265517251,7.0023,142.81,142.75,33.1022]
[1724265517915,7.0018,142.82,142.76,7.0047]
[1724265518231,41.28,142.83,142.76,7.0047]
[1724265518438,41.28,142.83,142.75,33.1022]
[1724265518731,7.0023,142.81,142.75,40.1073]
[1724265520347,7.0023,142.81,142.75,33.1022]
[1724265521515,1.35141415,142.82,142.75,33.1022]
[1724265521516,7.0029,142.8,142.75,33.1022]
[1724265521719,1.35141415,142.79,142.75,15.5898]
[1724265521938,41.28,142.77,142.71,15.1501]
[1724265522314,7.0061,142.74,142.71,15.1501]
[1724265522520,7.0063,142.73,142.68,0.8339037]
[1724265522827,1.35141415,142.72,142.68,0.8339037]
[1724265523029,7.28747861,142.73,142.68,0.8339037]
[1724265523425,41.28,142.75,142.68,0.8339037]
[1724265523754,7.0062,142.73,142.68,0.8339037]
[1724265526249,113.2881,142.69,142.68,0.8339037]
[1724265526464,48.2881,142.69,142.68,0.8339037]
[1724265526741,41.28,142.75,142.68,0.8339037]
[1724265526948,20.0,142.75,142.68,0.8339037]
[1724265527153,14.2925242,142.76,142.7,7.0075]
[1724265527334,7.0062,142.73,142.68,0.8339037]
[1724265527718,41.28,142.75,142.68,0.8339037]
[1724265528050,7.0071,142.72,142.68,0.8339037]
[1724265528622,7.0072,142.71,142.68,0.8339037]
[1724265529646,7.0067,142.72,142.68,0.8339037]
[1724265529842,7.2874242,142.76,142.7,15.1941]
[1724265530466,14.2925242,142.76,142.7,22.2017]
[1724265530675,14.2925242,142.76,142.7,15.1941]
[1724265531356,7.2874242,142.76,142.7,15.1941]
[1724265531734,7.0061,142.74,142.7,15.1941]
[1724265531939,7.2874242,142.76,142.7,15.1941]
[1724265531940,7.0067,142.72,142.7,15.1941]
[1724265532571,7.0072,142.71,142.68,0.8339037]
[1724265533264,7.0068,142.72,142.68,0.8339037]
[1724265534068,14.29374251,142.73,142.68,0.8339037]
[1724265534268,7.28744251,142.73,142.68,0.8339037]
[1724265534562,7.0072,142.71,142.68,0.8339037]
[1724265534781,7.0077,142.7,142.68,0.8339037]
[1724265534934,49.63951415,142.69,142.68,0.8339037]
[1724265535133,113.2881,142.69,142.68,0.8339037]
[1724265536047,114.63951415,142.69,142.68,0.8339037]
[1724265537444,113.2881,142.69,142.68,0.8339037]
[1724265537967,114.63951415,142.69,142.68,0.8339037]
[1724265538355,113.2881,142.69,142.68,0.8339037]
[1724265538560,68.2881,142.69,142.68,0.8339037]
[1724265539392,41.28,142.71,142.68,0.8339037]
[1724265539668,7.0072,142.71,142.68,0.8339037]
[1724265540250,7.0067,142.72,142.68,0.8339037]
[1724265540580,14.29374251,142.73,142.68,0.8339037]
[1724265540873,7.0073,142.71,142.68,0.8339037]
[1724265541960,7.0067,142.72,142.68,0.8339037]
[1724265542371,7.28744251,142.73,142.69,15.5677]
[1724265542372,14.29374251,142.73,142.69,15.5677]
[1724265542575,35.0096,142.82,142.7,7.0073]
[1724265542576,7.0051,142.76,142.7,7.0073]
[1724265542741,7.0053,142.75,142.69,22.5757]
[1724265543254,48.56680968,142.76,142.69,15.5677]
[1724265543574,7.0063,142.73,142.69,15.5677]
[1724265544145,48.56680968,142.76,142.7,1.4015291]
[1724265544481,14.29190968,142.76,142.7,7.0074]
[1724265544688,7.28680968,142.76,142.71,7.0071]
[1724265544851,7.28680968,142.76,142.73,7.0061]
[1724265545046,7.0036,142.79,142.73,7.0061]
[1724265545361,7.0039,142.78,142.72,24.5226]
[1724265545570,7.0043,142.77,142.71,7.0071]
[1724265545883,7.0048,142.76,142.7,7.0076]
[1724265546382,7.0053,142.75,142.7,7.0076]
[1724265546753,7.0048,142.76,142.7,7.0076]
[1724265547372,7.0043,142.77,142.71,7.007]
[1724265547778,7.0043,142.77,142.72,7.0066]
[1724265548156,7.0039,142.78,142.72,7.0066]
[1724265548763,7.0042,142.77,142.72,7.0066]
[1724265549681,7.0037,142.78,142.72,7.0066]
[1724265550760,7.0043,142.77,142.72,7.0066]
[1724265551783,7.0047,142.76,142.71,24.5246]
[1724265551985,1.35141415,142.75,142.69,15.5677]
[1724265552181,7.0048,142.76,142.7,7.0076]
[1724265554101,1.35141415,142.77,142.69,22.5758]
[1724265554386,41.28,142.74,142.69,15.5677]
[1724265554687,65.0,142.73,142.69,15.5677]
[1724265554894,7.0073,142.71,142.69,15.5677]
[1724265555100,7.0067,142.72,142.69,15.5677]
[1724265555387,41.28,142.76,142.69,15.5677]
[1724265555690,7.0057,142.75,142.69,22.5757]
[1724265555994,7.28578978,142.76,142.69,15.5677]
[1724265556179,7.0077,142.7,142.69,15.5677]
[1724265556500,7.0081,142.69,142.68,0.8339037]
[1724265556784,41.28,142.72,142.68,0.8339037]
[1724265556785,7.0078,142.7,142.68,0.8339037]
[1724265556999,7.0081,142.69,142.68,0.8339037]
[1724265557295,7.0076,142.71,142.68,0.8339037]
[1724265557670,7.0068,142.72,142.68,0.8339037]
[1724265557996,7.0072,142.71,142.68,0.8339037]
[1724265558382,48.56578978,142.76,142.68,0.8339037]
[1724265558582,7.0063,142.73,142.68,0.8339037]
[1724265559911,48.56578978,142.76,142.68,0.8339037]
[1724265560203,7.0063,142.73,142.68,0.8339037]
[1724265560497,7.0072,142.71,142.68,0.8339037]
[1724265561072,7.0068,142.72,142.68,0.8339037]
[1724265562166,7.0063,142.73,142.68,0.8339037]
[1724265562783,20.0,142.75,142.68,0.8339037]
[1724265563700,7.28578978,142.76,142.69,15.9348]
[1724265565778,7.0054,142.75,142.69,22.9427]
[1724265566188,7.0057,142.74,142.69,15.9348]
[1724265566397,7.0063,142.73,142.69,15.9348]
[1724265566899,7.0053,142.75,142.69,22.9429]
[1724265567201,7.28578978,142.76,142.7,23.6391]
[1724265567403,33.05,142.8,142.7,23.6391]
[1724265567701,7.284799,142.78,142.7,23.6391]
[1724265568076,7.0046,142.77,142.71,7.0071]
[1724265568380,14.288499,142.78,142.73,7.0062]
[1724265568583,7.0036,142.79,142.74,15.5183]
[1724265568773,7.0028,142.8,142.74,23.9249106]
[1724265568975,7.0028,142.8,142.74,22.5239]
[1724265569176,7.0033,142.79,142.74,22.5239]
[1724265569474,8.35471415,142.79,142.74,15.5183]
[1724265570406,7.28313536,142.81,142.74,15.5183]
[1724265570407,1.35141415,142.78,142.74,15.5183]
[1724265570571,7.0052,142.75,142.74,15.5183]
[1724265570776,7.0048,142.76,142.74,15.5183]
[1724265571078,8.35621415,142.76,142.74,15.5183]
[1724265571281,33.05,142.79,142.74,15.5183]
[1724265571478,20.0,142.8,142.74,15.5183]
[1724265571684,7.0036,142.79,142.74,15.5183]
[1724265571904,7.0037,142.78,142.74,15.5183]
[1724265572087,33.05,142.79,142.74,15.5183]
[1724265572276,7.0051,142.76,142.74,15.5183]
[1724265572671,7.0044,142.77,142.74,15.5183]
[1724265573282,7.0038,142.78,142.74,15.5183]
[1724265573787,17.5026,142.84,142.74,33.032]
[1724265573974,7.0028,142.8,142.75,7.0051]
[1724265574175,7.0028,142.8,142.74,40.0375]
[1724265574393,7.0028,142.8,142.75,1.40080936]
[1724265574803,7.0028,142.8,142.74,40.0375]
[1724265575304,7.0028,142.8,142.75,7.0051]
[1724265576912,40.33166803,142.83,142.74,33.032]
[1724265577207,14.28306803,142.83,142.77,7.004]
[1724265577405,7.0019,142.82,142.76,24.5159]
[1724265577908,7.0013,142.83,142.77,7.0041]
[1724265578504,7.0019,142.82,142.76,24.516]
[1724265579110,40.33102289,142.85,142.77,7.0041]
[1724265579111,7.0014,142.83,142.77,7.0041]
[1724265580997,7.0019,142.82,142.76,24.5159]
[1724265582514,7.0026,142.81,142.76,17.5113]
[1724265582714,7.0026,142.81,142.76,24.5159]
[1724265583714,40.0517,142.83,142.77,7.004]
[1724265584310,7.0017,142.83,142.77,7.004]
[1724265584487,7.28102289,142.85,142.81,7.0023]
[1724265584684,7.0,142.86,142.81,7.0023]
[1724265584887,7.0,142.86,142.8,24.5093]
[1724265585607,47.32756042,142.87,142.81,13.1242]
[1724265589016,7.0011,142.84,142.81,6.122]
[1724265589230,33.05,142.83,142.78,21.2321]
[1724265589405,40.0523,142.81,142.78,21.2321]
[1724265589911,7.0029,142.8,142.78,21.2321]
[1724265590117,7.0029,142.8,142.78,15.0338]
[1724265591132,7.0019,142.82,142.78,15.0338]
[1724265591843,40.32786042,142.87,142.73,15.2323]
[1724265591844,33.05,142.79,142.73,15.2323]
[1724265592053,33.05,142.75,142.68,16.0662037]
[1724265592222,33.05,142.73,142.68,33.5876037]
[1724265592635,40.0553,142.75,142.68,33.5876037]
[1724265592951,7.0048,142.76,142.7,7.0076]
[1724265593129,7.0052,142.75,142.69,7.008]
[1724265595231,7.0057,142.74,142.69,7.008]
[1724265595655,7.0057,142.74,142.68,33.5876037]
[1724265595656,40.0573,142.71,142.68,16.0662037]
[1724265596430,33.05,142.71,142.68,16.0662037]
[1724265597048,40.0581,142.69,142.68,0.8339037]
[1724265597538,85.0581,142.69,142.68,0.8339037]
[1724265600238,78.05,142.69,142.68,0.8339037]
[1724265600442,33.05,142.71,142.68,0.8339037]
[1724265600655,45.0,142.7,142.68,0.8339037]
[1724265600968,52.0077,142.7,142.68,0.8339037]
[1724265601145,7.0077,142.7,142.68,0.8339037]
[1724265601959,33.05,142.73,142.68,0.8339037]
[1724265602140,7.28110593,142.76,142.68,0.8339037]
[1724265602141,40.33110593,142.76,142.68,0.8339037]
[1724265602465,7.0053,142.75,142.68,7.8421037]
[1724265602669,7.0058,142.74,142.68,7.8421037]
[1724265602858,7.0058,142.74,142.68,0.8339037]
[1724265603347,7.0052,142.75,142.7,15.4198]
[1724265603546,7.28110593,142.76,142.7,22.4274]
[1724265603842,40.0538,142.78,142.71,7.0071]
[1724265604045,7.0043,142.77,142.71,7.0071]
[1724265605665,7.26510204,142.79,142.71,17.5172]
[1724265605840,7.26510204,142.79,142.76,16.3095]
[1724265606172,48.56438044,142.84,142.76,16.3095]
[1724265606370,48.56438044,142.84,142.76,23.3139]
[1724265606663,14.26558044,142.84,142.78,7.0036]
[1724265606879,7.0032,142.8,142.76,16.3095]
[1724265607346,7.0034,142.79,142.76,16.3095]
[1724265607767,7.0038,142.78,142.76,16.0989361]
[1724265608079,7.0038,142.78,142.71,17.5176]
[1724265608080,1.35141415,142.77,142.71,17.5176]
[1724265608236,45.0,142.78,142.71,17.5176]
[1724265608437,46.35141415,142.79,142.71,17.5176]
[1724265608659,41.3,142.78,142.71,17.5176]
[1724265608862,52.0042,142.77,142.71,24.5243]
[1724265610350,1.35141415,142.76,142.69,6.6498]
[1724265610574,7.0058,142.74,142.69,6.6498]
[1724265610739,48.3048,142.76,142.7,22.7077]
[1724265610943,45.0,142.75,142.7,22.7077]
[1724265611144,52.0053,142.75,142.7,22.7077]
[1724265611360,52.0053,142.75,142.7,15.7001]
[1724265611758,7.0057,142.74,142.7,15.7001]
[1724265612852,52.0053,142.75,142.7,15.7001]
[1724265613058,7.0047,142.77,142.7,22.7077]
[1724265613573,7.0047,142.77,142.71,7.0071]
[1724265613748,7.0048,142.76,142.71,7.0071]
[1724265613950,7.0048,142.76,142.7,22.7076]
[1724265615183,7.0043,142.77,142.7,33.2185]
[1724265615651,61.3,142.76,142.68,7.8425037]
[1724265615851,7.0061,142.74,142.68,7.8425037]
[1724265616665,7.0053,142.75,142.69,7.008]
[1724265616971,7.0053,142.75,142.71,15.6331]
[1724265617854,7.0053,142.75,142.71,15.42248076]
[1724265618576,7.0058,142.74,142.71,22.07718076]
[1724265618873,45.0,142.77,142.71,22.07718076]
[1724265619457,7.0056,142.75,142.71,22.07718076]
[1724265619673,7.006,142.74,142.71,22.07718076]
[1724265619962,7.0067,142.72,142.71,15.42248076]
[1724265620360,7.0078,142.7,142.68,0.8339037]
[1724265622085,7.0072,142.71,142.68,0.8339037]
[1724265622286,41.3,142.74,142.68,0.8339037]
[1724265622453,7.0068,142.72,142.68,0.8339037]
[1724265622660,41.3,142.76,142.68,0.8339037]
[1724265622885,66.04804422,142.78,142.68,0.8339037]
[1724265623083,7.0053,142.75,142.7,7.0076]
[1724265623280,66.04804422,142.78,142.7,7.0076]
[1724265623574,7.0051,142.76,142.7,7.0076]
[1724265624159,7.0053,142.75,142.7,7.0076]
[1724265624786,7.0053,142.75,142.69,24.528]
[1724265625889,7.0058,142.74,142.69,24.528]
[1724265626883,7.0064,142.73,142.68,7.8424037]
[1724265627385,41.3,142.74,142.68,0.8339037]
[1724265627588,7.0075,142.71,142.68,0.8339037]
[1724265628865,7.0068,142.72,142.68,0.8339037]
[1724265629485,41.3,142.74,142.68,18.3550037]
[1724265629676,7.0063,142.73,142.68,18.3550037]
[1724265632193,41.3,142.74,142.68,0.8339037]
[1724265632392,7.0068,142.72,142.68,0.8339037]
[1724265633390,7.0081,142.7,142.68,0.8339037]
[1724265633804,7.0081,142.69,142.68,0.8339037]
[1724265634496,40.0881,142.69,142.68,0.8339037]
[1724265635271,33.08,142.71,142.68,0.8339037]
[1724265635499,40.0875,142.71,142.68,0.8339037]
[1724265636168,33.08,142.75,142.68,0.8339037]
[1724265636370,7.0067,142.72,142.68,0.8339037]
[1724265637296,7.0073,142.71,142.68,0.8339037]
[1724265639089,7.0081,142.69,142.68,0.8339037]
[1724265644298,48.3481,142.69,142.68,0.8339037]
[1724265644782,93.3481,142.69,142.68,0.8339037]
[1724265646679,94.69951415,142.69,142.68,0.8339037]
[1724265646878,93.3481,142.69,142.68,0.8339037]
[1724265647795,7.0077,142.7,142.68,0.8339037]
[1724265648406,7.0081,142.69,142.68,0.8339037]
[1724265648795,7.0077,142.7,142.68,0.8339037]
[1724265649110,7.0075,142.71,142.68,0.8339037]
[1724265649486,7.0078,142.7,142.68,0.8339037]
[1724265649983,7.0073,142.71,142.68,0.8339037]
[1724265650188,14.24668184,142.72,142.68,0.8339037]
[1724265650505,7.0063,142.73,142.68,7.8425037]
[1724265650717,7.0063,142.73,142.68,0.8339037]
[1724265650925,41.34,142.75,142.69,16.0912]
[1724265651135,7.0058,142.74,142.69,16.0912]
[1724265652626,7.0053,142.75,142.69,23.0992]
[1724265652818,7.0053,142.75,142.69,24.50056728]
[1724265653023,7.0058,142.74,142.69,23.0992]
[1724265653722,7.0053,142.75,142.69,23.0992]
[1724265654329,7.0059,142.74,142.69,16.0912]
[1724265655011,7.0053,142.75,142.69,23.0991]
[1724265655724,7.0053,142.75,142.7,7.0076]
[1724265656041,7.0053,142.75,142.69,16.0912]
[1724265656213,7.0053,142.75,142.69,23.099]
[1724265656411,7.0053,142.75,142.69,16.0912]
[1724265657121,7.0058,142.74,142.69,23.0992]
[1724265657908,41.34,142.73,142.69,16.0912]
[1724265658112,7.0072,142.71,142.69,16.0912]
[1724265658517,33.07,142.71,142.69,16.0912]
[1724265659929,40.0763,142.73,142.69,16.0912]
[1724265660131,33.07,142.73,142.69,16.0912]
[1724265660440,7.0058,142.74,142.69,16.0912]
[1724265660813,7.0063,142.73,142.69,16.0912]
[1724265661342,7.0059,142.74,142.69,16.0912]
[1724265661544,40.0754,142.75,142.69,23.0993]
[1724265661871,7.0058,142.74,142.69,16.0912]
[1724265663033,7.0064,142.73,142.69,16.0912]
[1724265663823,7.0058,142.74,142.69,16.0912]
[1724265664022,7.0058,142.74,142.69,23.0992]
[1724265664315,40.0753,142.75,142.7,7.0076]
[1724265664739,7.0053,142.75,142.7,7.0076]
[1724265664917,7.0053,142.75,142.69,33.6113]
[1724265664918,33.07,142.79,142.71,23.6088]
[1724265665127,7.0039,142.78,142.71,25.00998147]
[1724265665326,7.0043,142.77,142.72,22.2319]
[1724265665664,7.0047,142.76,142.72,15.2253]
[1724265666956,40.0744,142.77,142.72,15.2253]
[1724265667846,7.005,142.76,142.72,15.2253]
[1724265669154,33.07,142.77,142.72,15.2253]
[1724265669378,33.07,142.79,142.72,15.2253]
[1724265669736,7.0037,142.78,142.73,7.0061]
[1724265670761,40.0744,142.77,142.72,22.2319]
[1724265671243,40.0744,142.77,142.72,15.2253]
[1724265671564,40.0744,142.77,142.72,22.2319]
[1724265672667,33.07,142.77,142.73,7.006]
[1724265673034,33.07,142.77,142.72,15.2253]
[1724265673253,33.07,142.77,142.72,22.2319]
[1724265673465,33.07,142.79,142.72,22.2319]
[1724265673673,33.07,142.75,142.72,15.2253]
[1724265674372,40.0753,142.75,142.72,15.2253]
[1724265674677,33.07,142.75,142.72,15.2253]
[1724265675080,7.0048,142.76,142.72,15.2253]
[1724265675280,40.0743,142.77,142.72,22.2319]
[1724265675576,7.0043,142.77,142.72,22.2319]
[1724265676076,7.0047,142.76,142.72,15.2253]
[1724265676892,14.22227496,142.77,142.72,22.2319]
[1724265677275,14.22227496,142.77,142.72,15.2253]
[1724265679458,7.0043,142.77,142.72,15.2253]
[1724265681090,7.0048,142.76,142.72,15.2253]
[1724265683685,7.0053,142.75,142.72,15.2253]
[1724265683875,40.0762,142.73,142.72,15.2253]
[1724265684273,7.0069,142.72,142.69,15.5226]
[1724265684467,8.35831415,142.72,142.69,15.5226]
[1724265684863,7.0069,142.72,142.69,15.5226]
[1724265685066,34.42141415,142.71,142.68,0.8339037]
[1724265685267,40.0781,142.69,142.68,0.8339037]
[1724265685477,33.07,142.69,142.68,0.8339037]
[1724265687794,7.0078,142.7,142.68,0.8339037]
[1724265688190,40.0772,142.71,142.68,0.8339037]
[1724265688490,17.516,142.73,142.68,0.8339037]
[1724265688491,7.0068,142.72,142.68,0.8339037]
[1724265690287,40.0763,142.73,142.68,7.8424037]
[1724265690487,7.0063,142.73,142.68,7.8424037]
[1724265690799,7.0063,142.73,142.68,0.8339037]
[1724265691095,33.07,142.73,142.68,0.8339037]
[1724265691277,40.0766,142.73,142.68,0.8339037]
[1724265691481,1.35141415,142.72,142.68,0.8339037]
[1724265691993,33.07,142.71,142.68,0.8339037]
[1724265692473,40.0774,142.71,142.68,0.8339037]
[1724265692670,1.35141415,142.7,142.68,0.8339037]
[1724265693400,33.07,142.69,142.68,0.8339037]
[1724265693996,40.0781,142.69,142.68,0.8339037]
[1724265695879,33.07,142.69,142.68,0.8339037]
[1724265696079,40.0773,142.71,142.68,0.8339037]
[1724265696293,14.23454719,142.72,142.68,0.8339037]
[1724265697379,7.0072,142.71,142.68,0.8339037]
[1724265697787,40.0772,142.71,142.68,0.8339037]
[1724265699012,7.0081,142.69,142.68,0.8339037]
[1724265699298,7.0077,142.7,142.68,0.8339037]
[1724265699508,33.07,142.71,142.68,0.8339037]
[1724265699509,7.0081,142.69,142.68,0.8339037]
[1724265699698,33.07,142.71,142.68,0.8339037]
[1724265700084,7.0078,142.7,142.68,0.8339037]
[1724265702105,40.0781,142.69,142.68,0.8339037]
[1724265704284,33.07,142.69,142.68,0.8339037]
[1724265704483,7.0078,142.7,142.68,0.8339037]
[1724265705006,7.0081,142.69,142.68,0.8339037]
[1724265705315,41.42951415,142.69,142.68,0.8339037]